bitfinex/quotes_ETHUSD_20220212
["timestamp","ask_amount","ask_price","bid_price","bid_amount"]
[1644663584371,0.1728,2910.7,2909.3,0.25]
[1644663584569,0.1728,2910.7,2909.4,1.60912298]
[1644663584770,0.61261596,2910.5,2909.9,0.63680738]
[1644663584976,0.001,2910.8,2910.0,1.43768326]
[1644663585371,0.001,2910.9,2910.0,1.43768326]
[1644663586270,0.001,2910.9,2910.6,0.5470338]
[1644663586669,0.001,2911.1,2910.6,0.5470338]
[1644663587271,0.84493669,2911.2,2910.6,0.5470338]
[1644663587477,0.84493669,2911.2,2910.7,0.00265766]
[1644663588414,2.00263669,2911.2,2910.1,1.43637188]
[1644663588618,0.86163106,2911.1,2910.8,0.00883189]
[1644663588816,0.1716,2911.0,2910.8,0.00883189]
[1644663589620,0.1716,2911.0,2910.5,0.5088314]
[1644663589820,0.001,2911.1,2910.8,0.00883204]
[1644663590823,0.001,2911.1,2910.0,0.1716]
[1644663591027,0.85937,2911.0,2910.1,2.12441168]
[1644663591224,0.1716,2911.0,2910.1,0.68852755]
[1644663592074,0.84018838,2911.0,2910.1,0.68852755]
[1644663592273,0.66858838,2911.0,2910.4,0.00883311]
[1644663593374,0.66858838,2911.0,2910.1,0.68852755]
[1644663593575,0.66858838,2911.0,2910.6,0.00883265]
[1644663593975,1.52794838,2911.0,2910.6,0.00883265]
[1644663594180,5.0,2910.8,2910.6,0.00883265]
[1644663594480,5.0,2910.8,2909.9,0.1716]
[1644663594481,0.1716,2910.7,2909.9,0.1716]
[1644663594679,0.53521396,2910.5,2909.9,0.86638673]
[1644663595079,0.53521396,2910.5,2909.9,0.1716]
[1644663595523,1.39471396,2910.5,2909.9,0.1716]
[1644663595723,0.1728,2910.4,2909.9,0.1716]
[1644663595921,0.1728,2910.4,2910.1,0.00883417]
[1644663596521,3.63891341,2910.4,2910.1,0.00883417]
[1644663596722,0.07412823,2910.3,2909.3,0.1718]
[1644663597123,0.07412823,2910.3,2910.1,0.00883402]
[1644663597929,0.07412823,2910.3,2909.3,0.76407526]
[1644663598125,0.70095379,2909.9,2909.3,0.76407526]
[1644663598324,0.07312823,2909.8,2909.3,0.76407526]
[1644663598523,0.07312823,2909.8,2909.3,0.59227526]
[1644663598725,0.07312823,2909.8,2909.4,0.1718]
[1644663598977,0.001,2910.2,2909.4,0.1718]
[1644663599385,0.0741278,2910.2,2909.5,0.00883599]
[1644663600488,0.0741278,2910.2,2909.8,0.69551333]
[1644663600884,0.0731278,2910.1,2909.8,0.69551333]
[1644663601285,0.0731278,2910.0,2909.8,0.69551333]
[1644663601485,0.03827945,2910.3,2909.8,0.69551333]
[1644663601885,0.03827945,2910.3,2909.8,0.70430675]
[1644663602384,0.0355887,2910.3,2909.8,0.70430675]
[1644663602587,0.16336838,2910.0,2909.8,0.70430675]
[1644663602821,0.0355887,2910.3,2909.9,0.1718]
[1644663603029,0.0355887,2910.3,2909.9,0.18059333]
[1644663603917,0.0355887,2910.3,2909.9,0.1718]
[1644663604122,0.16336838,2910.1,2910.0,0.00265784]
[1644663604422,0.0355887,2910.3,2910.0,0.00265784]
[1644663604721,0.03462075,2910.3,2910.0,0.00265784]
[1644663605121,0.03462075,2910.3,2909.9,0.68383545]
[1644663605527,0.16336838,2910.1,2910.0,0.00883432]
[1644663605821,0.03462075,2910.3,2910.2,0.15582279]
[1644663609280,0.03462075,2910.3,2910.2,2.84837987]
[1644663609878,0.0355887,2910.3,2910.2,2.84837987]
[1644663614777,0.0355887,2910.3,2910.2,6.26679203]
[1644663614977,0.0355887,2910.3,2910.2,2.84837987]
[1644663616178,0.0355887,2910.3,2910.2,6.24525177]
[1644663618019,0.1728,2911.1,2910.3,3.25]
[1644663618222,0.1718,2911.1,2910.4,3.99339207]
[1644663618425,0.1718,2911.1,2910.5,0.6686]
[1644663618617,0.1718,2911.1,2910.8,2.69255708]
[1644663618820,0.1718,2911.1,2910.8,3.18955708]
[1644663619021,0.1718,2911.1,2910.9,0.6864855]
[1644663619223,0.00883992,2911.3,2910.8,2.69255708]
[1644663619423,0.65271729,2911.3,2910.8,2.69255708]
[1644663619622,0.64387737,2911.3,2910.8,2.69255708]
[1644663619824,0.64387737,2911.3,2910.9,0.00883159]
[1644663619825,0.65271803,2911.3,2910.9,0.00883159]
[1644663620822,0.64387737,2911.3,2910.8,3.24981353]
[1644663621033,0.65271814,2911.3,2911.0,0.00883144]
[1644663621478,0.07310245,2911.2,2911.0,0.00883144]
[1644663622069,0.07310245,2911.2,2910.8,3.24981353]
[1644663622269,0.07310245,2911.1,2911.0,0.00883144]
[1644663622468,0.07310245,2911.2,2911.0,0.00883144]
[1644663623271,0.07310245,2911.2,2910.8,3.24981353]
[1644663623471,0.81547737,2911.4,2911.0,0.00883144]
[1644663623472,0.07310245,2911.1,2911.0,0.00883144]
[1644663623676,0.00884071,2911.3,2911.0,0.00883144]
[1644663623677,0.07310245,2911.2,2911.0,0.00883144]
[1644663623870,0.07310245,2911.2,2911.1,1.34627854]
[1644663624675,0.64387737,2911.6,2911.1,1.34627854]
[1644663624676,0.08194326,2911.3,2911.1,1.34627854]
[1644663624873,0.07310245,2911.2,2911.1,1.34627854]
[1644663625719,0.07310245,2911.2,2911.1,1.1550419]
[1644663626622,0.07310245,2911.2,2911.1,2.56828088]
[1644663628025,0.07310245,2911.2,2911.1,1.1550419]
[1644663628221,0.00884081,2911.3,2911.1,1.1550419]
[1644663628420,0.07310245,2911.2,2911.1,1.1550419]
[1644663628621,0.00884081,2911.3,2911.1,1.1550419]
[1644663628825,0.00884081,2911.3,2911.0,0.00883144]
[1644663629081,0.00884081,2911.3,2911.2,2.99832044]
[1644663629277,0.07309013,2911.3,2911.2,2.99832044]
[1644663629475,0.00884081,2911.3,2911.2,2.99832044]
[1644663629875,0.08193094,2911.3,2911.2,2.99832044]
[1644663630475,0.07309013,2911.3,2911.2,2.99832044]
[1644663630881,0.00884078,2911.4,2911.3,3.25]
[1644663631084,0.00884078,2911.4,2911.3,7.53657511]
[1644663631677,0.00378836,2911.8,2911.3,8.19930143]
[1644663631882,0.00884069,2911.5,2911.3,8.49930143]
[1644663632078,0.03605868,2912.0,2911.5,3.25]
[1644663632383,0.1717,2914.2,2911.9,11.22754446]
[1644663632579,3.11773454,2914.7,2911.9,11.22754446]
[1644663632580,1.72329005,2914.1,2912.5,5.01219113]
[1644663632823,1.72329005,2914.1,2913.3,0.62555397]
[1644663633019,1.72329005,2914.1,2912.9,6.515]
[1644663633020,0.00380099,2914.1,2912.9,0.3]
[1644663633220,0.00380099,2914.6,2913.0,0.497]
[1644663633421,0.00380099,2914.6,2913.1,0.497]
[1644663633622,5.00380099,2914.6,2913.1,0.497]
[1644663633820,1.89098906,2914.5,2913.1,0.497]
[1644663634032,0.52472261,2913.8,2913.1,0.497]
[1644663634323,0.52472261,2913.8,2912.7,0.1715]
[1644663634324,0.00380099,2913.7,2913.4,1.34627854]
[1644663634525,0.00845689,2914.0,2913.4,2.50132044]
[1644663635325,0.1716,2914.6,2913.4,2.50132044]
[1644663635524,0.00845701,2913.8,2913.4,2.50132044]
[1644663636574,0.17540099,2913.9,2913.4,2.50132044]
[1644663636869,0.00845709,2913.7,2913.4,2.50132044]
[1644663637666,0.17530099,2914.5,2913.4,2.50132044]
[1644663637868,0.00835501,2913.7,2913.4,2.50132044]
[1644663638866,0.69260597,2913.8,2913.4,2.50132044]
[1644663639082,0.00835501,2913.7,2913.4,2.50132044]
[1644663639373,0.00835501,2913.7,2913.4,1.1550419]
[1644663639573,0.00835501,2913.7,2913.6,1.34627854]
[1644663639772,0.012156,2913.7,2913.6,2.50132044]
[1644663639974,0.00934264,2913.7,2913.6,2.50132044]
[1644663640222,0.00098763,2913.7,2913.6,2.50132044]
[1644663641221,0.00098763,2913.7,2913.6,2.52990732]
[1644663641921,0.1716,2914.1,2913.6,2.52990732]
[1644663642123,0.1715,2914.4,2913.6,2.52990732]
[1644663642322,0.1715,2914.8,2913.6,2.52990732]
[1644663642923,1.02985,2914.8,2913.6,2.52990732]
[1644663643127,1.32985,2914.8,2913.6,2.52990732]
[1644663643323,0.1715,2914.8,2913.6,2.52990732]
[1644663644179,0.70969339,2914.2,2913.6,2.52990732]
[1644663644771,0.70969339,2914.2,2913.6,1.18362878]
[1644663644971,0.70969339,2914.2,2913.6,0.02858688]
[1644663645172,0.70969339,2914.2,2913.9,1.34627854]
[1644663645370,0.70969339,2914.2,2913.9,2.50132044]
[1644663646073,0.1715,2914.8,2913.9,2.50132044]
[1644663646274,0.00943364,2914.3,2913.9,2.51036371]
[1644663646473,0.00943364,2914.3,2913.9,3.00736371]
[1644663647272,0.69082252,2914.4,2913.9,2.99832044]
[1644663647471,0.00943376,2914.3,2914.0,0.00904311]
[1644663648421,0.001,2914.8,2913.9,2.99832044]
[1644663648621,0.66654301,2914.7,2913.9,2.99832044]
[1644663648821,0.00890935,2914.3,2914.0,0.00729433]
[1644663649725,0.66654301,2914.7,2913.9,3.16982044]
[1644663649925,0.00890935,2914.3,2914.0,0.00729433]
[1644663650933,5.66654301,2914.7,2914.0,0.02698294]
[1644663651126,0.00890935,2914.3,2914.0,0.03427727]
[1644663651571,0.54669641,2914.1,2914.0,0.03427727]
[1644663651972,0.00890935,2914.3,2914.0,0.03427727]
[1644663652175,0.1715,2914.7,2914.0,0.02698294]
[1644663652371,0.00898583,2914.3,2914.0,0.02698294]
[1644663652571,0.1715,2914.2,2914.0,8.294e-05]
[1644663653577,0.1715,2914.2,2914.0,0.00013314]
[1644663653578,5.0,2914.1,2914.0,0.00013314]
[1644663653773,8.95267241,2914.1,2914.0,0.00013314]
[1644663653971,9.95267241,2914.1,2914.0,0.00013314]
[1644663654175,9.95267241,2914.1,2912.9,0.25]
[1644663654176,0.85865,2913.8,2912.9,0.25]
[1644663654377,5.0,2913.6,2912.1,0.1716]
[1644663654578,4.19763513,2913.7,2912.1,0.1716]
[1644663654579,5.0,2913.4,2912.1,0.1716]
[1644663654785,0.62604739,2912.7,2911.9,0.25]
[1644663654980,4.05117985,2913.3,2911.9,0.25]
[1644663654981,0.001,2913.2,2911.9,0.25]
[1644663655220,0.00480124,2913.3,2912.0,0.1716]
[1644663655420,0.00480124,2913.3,2912.6,1.34627854]
[1644663655620,0.00480124,2913.3,2912.6,2.50132044]
[1644663655822,4.93125283,2913.8,2912.6,2.50132044]
[1644663655823,0.00480124,2913.7,2912.6,2.50132044]
[1644663656120,0.69209703,2913.2,2912.6,2.50132044]
[1644663656443,0.00380124,2913.1,2912.6,2.50132044]
[1644663657223,0.00380124,2913.1,2912.7,0.00751604]
[1644663658021,0.00380124,2913.1,2912.6,2.50132044]
[1644663658422,0.00380124,2913.1,2912.8,0.00751591]
[1644663658621,0.69209703,2913.2,2912.8,0.00751591]
[1644663658823,0.00380124,2913.1,2912.8,0.00751591]
[1644663659077,0.69209703,2913.2,2912.8,0.00751591]
[1644663659278,3.45529915,2913.1,2912.6,2.50132044]
[1644663659475,3.45529915,2913.1,2912.8,0.00750244]
[1644663659476,0.001,2913.0,2912.8,0.00750244]
[1644663659675,0.1716,2912.9,2912.8,0.00750244]
[1644663660472,0.1726,2912.9,2912.6,1.1550419]
[1644663660675,5.1726,2912.9,2912.8,1.34627854]
[1644663660876,5.73688874,2912.9,2912.8,1.34627854]
[1644663661074,7.59580874,2912.9,2912.8,1.34627854]
[1644663661475,6.59580874,2912.9,2912.8,1.34627854]
[1644663661678,6.59580874,2912.9,2912.4,1.1550419]
[1644663661876,3.251,2912.8,2912.7,0.0075027]
[1644663662724,3.25,2912.7,2911.3,0.13819997]
[1644663662923,0.85904,2912.5,2910.8,0.25]
[1644663663119,0.1717,2912.4,2911.1,3.41485275]
[1644663663319,0.1727,2912.4,2911.1,3.41485275]
[1644663663722,0.56116643,2911.7,2911.1,3.41485275]
[1644663663918,0.56116643,2911.7,2911.2,0.1716]
[1644663664124,0.56116643,2911.7,2911.1,0.1716]
[1644663665927,0.1726,2912.0,2911.1,0.1716]
[1644663666124,1.183,2912.4,2911.1,0.1716]
[1644663666125,0.001,2912.3,2911.1,0.1716]
[1644663666780,0.001,2912.3,2911.6,0.00900804]
[1644663667183,0.67469883,2912.0,2911.6,0.00900804]
[1644663667782,0.67469883,2912.0,2910.9,0.1716]
[1644663667984,0.67469883,2912.0,2911.7,0.00900773]
[1644663668878,0.67469883,2912.0,2910.9,0.1716]
[1644663669079,0.67469883,2912.0,2910.8,0.25]
[1644663669380,0.67469883,2912.0,2911.7,0.00900758]
[1644663669580,0.1716,2911.9,2911.7,0.00900758]
[1644663670221,0.52392816,2911.5,2910.8,0.25]
[1644663670422,0.52392816,2911.5,2910.7,0.1716]
[1644663671022,0.1716,2911.4,2910.7,0.1716]
[1644663673029,3.83191721,2911.4,2910.7,0.1716]
[1644663673230,0.001,2911.3,2910.7,0.1716]
[1644663673426,6.001,2911.3,2910.2,0.40582279]
[1644663673626,4.25043018,2911.2,2910.2,0.40582279]
[1644663673826,1.001,2911.1,2910.2,0.15582279]
[1644663674073,3.73125751,2911.0,2910.2,0.15582279]
[1644663674276,0.53069515,2910.4,2910.2,0.15582279]
[1644663675075,3.44536847,2910.3,2910.2,0.16481869]
[1644663675275,0.001,2910.3,2910.2,0.16481869]
[1644663675477,0.53069515,2910.4,2910.2,0.16481869]
[1644663676075,0.53069515,2910.4,2910.2,0.15582279]
[1644663676375,0.53069515,2910.4,2910.2,0.16481869]
[1644663677177,3.43422818,2910.3,2909.7,0.035989]
[1644663677379,0.001,2910.2,2909.5,0.1716]
[1644663677577,0.1718,2910.1,2909.7,0.035989]
[1644663677826,4.82833042,2910.1,2909.7,0.035989]
[1644663678027,0.001,2910.0,2909.5,0.157589]
[1644663678327,0.5322051,2909.9,2909.5,0.157589]
[1644663679130,0.63304679,2909.4,2909.0,0.1718]
[1644663679329,0.001,2910.1,2909.1,0.00192462]
[1644663679530,0.001,2910.1,2909.4,1.56004114]
[1644663679729,0.001,2910.1,2909.4,1.51004114]
[1644663679932,0.001,2910.1,2909.5,0.00269267]
[1644663680430,0.57931393,2910.0,2909.5,0.00269267]
[1644663680633,3.43867924,2909.9,2909.5,0.00269267]
[1644663680833,0.001,2909.8,2909.5,0.00269267]
[1644663681038,0.75111393,2910.0,2909.4,1.51196576]
[1644663681039,0.57931393,2910.0,2909.4,1.51004114]
[1644663681232,0.57600819,2909.5,2909.4,1.51004114]
[1644663682372,0.00943118,2909.8,2909.4,1.51004114]
[1644663682874,0.00943118,2909.8,2909.5,0.1718]
[1644663683072,0.00943118,2909.8,2909.4,1.68184114]
[1644663683269,0.03791804,2910.1,2909.4,1.68184114]
[1644663683471,0.03791804,2910.1,2909.5,0.00198013]
[1644663683676,0.00943165,2909.8,2909.5,0.01086557]
[1644663684474,0.03791804,2910.1,2909.5,0.00198013]
[1644663684675,0.03791804,2910.1,2909.5,0.01086557]
[1644663684875,0.00943165,2909.8,2909.5,0.01086557]
[1644663685719,0.03791804,2910.1,2909.5,0.00198013]
[1644663685920,0.00943165,2909.8,2909.5,0.01086557]
[1644663686521,0.04638861,2909.8,2909.5,0.01086557]
[1644663686921,0.04638861,2909.8,2909.5,0.00198013]
[1644663686922,0.03695696,2909.8,2909.5,0.00198013]
[1644663687120,0.04638861,2909.8,2909.5,0.00888544]
[1644663687321,0.04638861,2909.8,2909.5,0.01086557]
[1644663688222,0.03695696,2909.8,2909.5,0.00198013]
[1644663688422,0.04638861,2909.8,2909.5,0.00888544]
[1644663688625,0.04638861,2909.8,2909.5,0.01086557]
[1644663689270,0.03695696,2909.8,2909.5,0.00198013]
[1644663689471,0.03695696,2909.8,2909.4,1.51004114]
[1644663689670,0.69451664,2909.7,2909.5,0.00888544]
[1644663689872,0.69543947,2909.7,2909.5,0.01086557]
[1644663690069,0.69543947,2909.7,2909.5,0.00888544]
[1644663690270,0.00092283,2909.7,2909.5,0.00888544]
[1644663690469,0.00092283,2909.7,2909.4,1.51004114]
[1644663690872,0.00092283,2909.7,2909.5,0.00888559]
[1644663691072,0.00092283,2909.7,2909.5,0.18068559]
[1644663691872,0.00092283,2909.7,2909.5,0.1718]
[1644663692071,0.00092283,2909.7,2909.5,0.18068559]
[1644663693023,0.00092283,2909.7,2909.5,0.1718]
[1644663693222,0.00092283,2909.7,2909.5,0.18068559]
[1644663693821,0.00012283,2909.7,2909.5,0.18068559]
[1644663694032,0.00012283,2909.7,2909.6,0.497]
[1644663694226,0.00012283,2909.7,2909.6,0.6688]
[1644663694425,0.00012283,2909.7,2909.6,2.13098308]
[1644663695025,0.00092308,2909.7,2909.6,2.13098308]
[1644663695226,0.00092308,2909.7,2909.6,0.6688]
[1644663695826,0.00092308,2909.7,2909.6,2.13104023]
[1644663696026,0.00172333,2909.7,2909.6,2.13104023]
[1644663696480,3.165e-05,2909.8,2909.7,3.2517]
[1644663696681,0.00080025,2910.3,2909.7,5.21094023]
[1644663696873,0.00080025,2910.3,2909.8,1.46422036]
[1644663697073,0.00080025,2910.3,2909.9,0.497]
[1644663697274,0.00080025,2910.3,2910.0,0.1718]
[1644663697475,0.00080025,2910.3,2910.1,0.497]
[1644663697680,0.00080025,2910.3,2910.2,0.1718]
[1644663699078,0.00080025,2910.3,2910.1,0.497]
[1644663699478,0.67629728,2911.1,2910.5,0.01936633]
[1644663700080,0.1728,2911.6,2910.5,0.01936633]
[1644663700521,11.63498272,2912.2,2910.5,0.01936633]
[1644663700522,3.66862178,2912.0,2910.5,0.01936633]
[1644663700725,0.001,2911.9,2910.5,3.03176633]
[1644663700924,0.1716,2911.8,2910.5,3.03176633]
[1644663701126,0.60188398,2911.5,2910.5,3.03176633]
[1644663701725,0.60188398,2911.5,2910.6,1.46189036]
[1644663703527,0.60188398,2911.5,2910.5,3.03176633]
[1644663703727,0.60188398,2911.5,2910.6,0.1716]
[1644663703982,0.00890856,2911.2,2910.5,3.03176633]
[1644663704974,0.62646021,2910.9,2910.5,3.03176633]
[1644663705175,0.62646021,2910.9,2910.5,0.01936633]
[1644663706478,0.00915394,2910.8,2910.7,0.028282]
[1644663707478,0.62646021,2910.9,2910.7,0.028282]
[1644663707719,0.6356141,2910.9,2910.7,0.028282]
[1644663708123,3.47452606,2910.8,2910.7,0.028282]
[1644663708321,0.1726,2910.8,2910.7,0.028282]
[1644663708522,0.1716,2910.8,2910.7,0.028282]
[1644663710026,0.17243391,2910.8,2910.7,0.028282]
[1644663710228,3.59331468,2910.8,2910.7,0.028282]
[1644663710527,3.61338781,2910.8,2910.7,0.028282]
[1644663710727,3.65308507,2910.8,2910.7,0.028282]
[1644663711131,0.67043391,2910.8,2910.7,0.028282]
[1644663711577,4.1437003,2910.8,2910.7,0.028282]
[1644663711777,0.67043391,2910.8,2910.7,0.028282]
[1644663712979,0.67043391,2910.8,2910.7,0.01991618]
[1644663713378,0.67043391,2910.8,2909.9,0.25]
[1644663713379,3.25,2910.7,2909.9,0.25]
[1644663713582,4.44798465,2910.6,2910.0,0.00742235]
[1644663713885,0.498,2910.5,2910.0,0.00742235]
[1644663714084,3.63930506,2910.4,2910.0,0.00742235]
[1644663714282,1.001,2910.3,2910.0,0.00742235]
[1644663714483,0.88816115,2910.2,2910.0,0.00742235]
[1644663714682,0.88816115,2910.2,2909.6,0.00198013]
[1644663714887,0.88816115,2910.2,2910.0,0.00742235]
[1644663715721,0.88816115,2910.2,2909.6,0.00198013]
[1644663716022,0.69317048,2909.7,2909.6,0.00198013]
[1644663716222,0.69317048,2909.7,2909.5,0.02957281]
[1644663716423,0.001,2910.1,2909.5,0.02957281]
[1644663716626,0.001,2910.4,2909.6,1.46254307]
[1644663716822,0.0089688,2910.5,2909.7,0.00198013]
[1644663717040,0.001,2910.5,2909.7,0.00198013]
[1644663717223,0.00996857,2910.5,2909.9,0.00739235]
[1644663717527,0.55699698,2910.4,2909.9,0.00739235]
[1644663717721,0.55799698,2910.4,2909.9,0.00739235]
[1644663718126,0.55799698,2910.4,2909.5,0.00198013]
[1644663718322,0.55799698,2910.4,2909.5,1.46454233]
[1644663718522,0.54190211,2910.3,2910.0,0.00739209]
[1644663719015,0.001,2910.4,2910.0,0.00739209]
[1644663719207,0.00896892,2910.5,2910.0,0.00739209]
[1644663719406,0.00183391,2910.8,2909.9,0.1718]
[1644663719607,0.00183391,2910.8,2910.0,1.46972213]
[1644663719608,0.00897036,2910.5,2910.0,1.46972213]
[1644663719804,0.00897036,2910.5,2910.1,1.63392561]
[1644663720007,0.00897036,2910.5,2910.2,1.46232561]
[1644663720404,0.00897036,2910.5,2910.0,0.00739652]
[1644663720607,0.5787627,2910.7,2909.8,0.00198013]
[1644663720802,0.5787627,2910.7,2909.8,1.46428433]
[1644663721003,0.00897071,2910.5,2910.0,0.00739652]
[1644663721205,0.01592736,2910.3,2910.0,0.00739652]
[1644663721808,0.01592736,2910.3,2909.8,0.00198013]
[1644663722004,0.01592736,2910.3,2910.0,0.00739652]
[1644663722403,0.58961029,2910.2,2910.1,1.46230559]
[1644663722605,0.58961029,2910.2,2910.0,0.00739652]
[1644663723018,0.58961029,2910.2,2909.8,0.00198013]
[1644663723218,0.58961029,2910.2,2910.0,0.00739583]
[1644663723420,0.01592736,2910.3,2910.2,0.77551796]
[1644663723619,0.56686751,2910.3,2910.2,0.77551796]
[1644663724522,0.56686751,2910.3,2910.2,0.52551796]
[1644663724923,0.56780656,2910.3,2910.2,0.52551796]
[1644663725726,0.73960656,2910.3,2910.2,0.52551796]
[1644663726125,0.7236792,2910.3,2910.2,0.52551796]
[1644663726323,0.5518792,2910.3,2910.2,0.52551796]
[1644663729875,0.55287834,2910.3,2910.2,0.52551796]
[1644663730334,4.15799207,2910.9,2910.2,0.52551796]
[1644663730335,0.86331691,2911.4,2910.5,3.25]
[1644663730536,2.42104812,2912.0,2910.5,3.25]
[1644663730537,1.03206391,2912.0,2911.3,0.01266016]
[1644663730728,1.03206391,2912.0,2911.9,0.01299037]
[1644663731132,1.03206391,2912.0,2911.9,1.01796804]
[1644663731528,1.03206391,2912.0,2911.9,6.712]
[1644663731727,0.00380124,2912.8,2911.9,6.712]
[1644663731926,0.1716,2913.1,2911.9,6.712]
[1644663732128,0.00380124,2912.9,2911.9,6.712]
[1644663732326,0.1716,2913.2,2911.9,6.712]
[1644663732327,0.00380124,2913.2,2911.9,6.712]
[1644663732731,0.64467366,2912.8,2911.9,6.712]
[1644663733137,0.00380124,2912.7,2911.9,6.712]
[1644663734076,0.00670672,2912.4,2911.9,6.712]
[1644663735074,0.00380124,2912.7,2911.9,6.712]
[1644663735274,0.00085443,2912.0,2911.9,6.712]
[1644663738018,0.00085443,2912.0,2911.9,10.13129477]
[1644663738222,0.00085443,2912.0,2911.9,6.712]
[1644663741471,0.03439027,2912.0,2911.9,6.712]
[1644663741670,0.03439027,2912.0,2911.9,7.22717024]
[1644663742073,0.03439027,2912.0,2911.9,1.01217024]
[1644663742475,0.03439027,2912.0,2911.9,0.76217024]
[1644663743876,0.03747431,2912.5,2912.1,3.25]
[1644663744080,0.00380124,2913.6,2913.1,0.53179289]
[1644663744281,0.00066686,2913.9,2913.1,0.53179289]
[1644663744282,0.00066686,2913.9,2913.3,6.215]
[1644663744480,0.00066686,2913.9,2913.7,6.215]
[1644663744780,0.00066686,2913.9,2913.8,0.497]
[1644663754422,0.68689183,2914.3,2913.8,0.497]
[1644663754623,0.00937121,2914.0,2913.8,0.497]
[1644663755423,0.51539183,2914.3,2913.8,0.497]
[1644663755822,0.00937116,2914.0,2913.8,0.497]
[1644663756677,0.51539183,2914.3,2913.8,0.497]
[1644663756870,0.00937116,2914.0,2913.8,0.497]
[1644663757971,0.51539183,2914.3,2913.8,0.497]
[1644663758172,0.00937116,2914.0,2913.8,0.497]
[1644663758570,0.00937116,2914.0,2913.1,3.88568228]
[1644663758571,0.1715,2913.9,2913.3,0.497]
[1644663758772,0.1715,2913.9,2913.1,3.3613]
[1644663759375,0.54874616,2913.7,2913.1,3.3613]
[1644663759575,0.54874616,2913.7,2913.1,0.1715]
[1644663760077,0.00937144,2913.7,2913.1,0.1715]
[1644663760322,0.1716,2914.0,2913.1,0.1715]
[1644663760519,0.00937162,2913.5,2913.1,0.1715]
[1644663761419,0.1716,2914.0,2913.1,0.1715]
[1644663761724,0.00937172,2913.4,2913.1,0.1715]
[1644663761920,0.00937172,2913.4,2913.0,0.497]
[1644663762121,0.00937172,2913.4,2913.1,3.5]
[1644663762326,0.1726,2914.5,2913.5,0.02811516]
[1644663762550,0.04741356,2915.0,2913.6,6.712]
[1644663762551,0.21901356,2915.0,2913.6,6.712]
[1644663762725,0.04741356,2915.0,2913.7,7.329]
[1644663762923,0.04741356,2915.0,2913.8,0.497]
[1644663763524,0.04741356,2915.0,2913.8,1.01197901]
[1644663764171,0.04741356,2915.0,2913.8,0.49974004]
[1644663764771,0.1715,2914.9,2913.8,0.49974004]
[1644663765172,0.1715,2914.9,2913.8,0.497]
[1644663765371,0.00933101,2914.5,2913.8,0.50613348]
[1644663766271,0.20881846,2914.9,2913.8,0.50613348]
[1644663766272,0.1715,2914.9,2913.8,0.497]
[1644663766473,0.51758887,2914.6,2913.8,0.497]
[1644663766676,0.0093312,2914.3,2913.8,0.50613348]
[1644663767573,0.51758887,2914.6,2913.8,0.497]
[1644663767819,0.51758887,2914.6,2913.9,0.00777133]
[1644663767820,0.00932625,2914.2,2913.9,0.00777133]
[1644663768021,0.00932625,2914.2,2914.0,0.497]
[1644663768419,0.00932625,2914.2,2914.0,0.6685]
[1644663768819,0.1715,2914.7,2914.0,0.6685]
[1644663769023,0.00932621,2914.2,2914.0,0.6685]
[1644663769627,0.00932621,2914.2,2914.0,1.5264713]
[1644663769825,0.00932621,2914.2,2914.1,0.1715]
[1644663770026,0.00378063,2914.6,2914.1,0.6685]
[1644663770325,0.00932621,2914.2,2914.1,0.6685]
[1644663771325,0.00378063,2914.6,2914.2,0.00777133]
[1644663771570,0.05941235,2914.6,2914.3,0.6685]
[1644663771772,0.05563172,2914.6,2914.3,0.6685]
[1644663771978,0.05563172,2914.6,2914.2,0.00777133]
[1644663771979,0.05941235,2914.6,2914.2,0.00777133]
[1644663772171,0.05563172,2914.6,2914.2,0.00777133]
[1644663772771,0.00933097,2914.5,2914.2,0.00777133]
[1644663772971,0.51520005,2914.3,2914.2,0.00777133]
[1644663773771,0.51520005,2914.3,2913.9,0.00777133]
[1644663773973,0.00378063,2914.2,2913.9,0.00777133]
[1644663774175,0.51520005,2914.3,2913.9,0.00777133]
[1644663775823,0.1715,2914.2,2913.9,0.00777133]
[1644663776023,0.1725,2914.2,2913.9,0.00777133]
[1644663777523,0.1725,2914.2,2913.5,0.02811516]
[1644663777524,0.18182337,2914.2,2913.8,0.00913348]
[1644663777725,0.00378063,2914.1,2913.8,0.00913348]
[1644663777924,0.001,2914.1,2913.8,0.00913348]
[1644663778324,0.001,2914.1,2913.6,0.00777133]
[1644663778826,0.62760266,2914.0,2913.8,0.00913348]
[1644663779683,0.62760266,2914.0,2913.6,0.00777133]
[1644663779873,0.80842617,2914.0,2913.8,0.00913348]
[1644663780074,0.63692617,2914.0,2913.8,0.00913348]
[1644663780274,0.1715,2913.9,2913.8,0.00913348]
[1644663780773,0.1715,2913.9,2913.5,0.02811516]
[1644663780973,0.17528063,2913.9,2913.8,0.00777133]
[1644663781175,0.1715,2913.9,2913.8,0.00777133]
[1644663782474,3.53745614,2913.9,2913.8,0.00777133]
[1644663782723,3.25,2913.8,2912.8,0.1715]
[1644663782928,8.501,2913.7,2912.8,0.1715]
[1644663783121,0.01253974,2913.2,2912.8,0.1715]
[1644663783322,1.6696,2913.6,2912.8,0.1715]
[1644663783522,0.001,2913.5,2912.8,0.1715]
[1644663783722,0.540349,2913.1,2912.8,0.1715]
[1644663783922,0.1716,2913.0,2912.8,0.1715]
[1644663784130,0.1716,2913.0,2912.1,0.25]
[1644663784327,0.1726,2913.0,2911.6,0.1716]
[1644663784529,0.1726,2913.0,2911.7,1.46144578]
[1644663784727,0.540349,2913.1,2911.8,1.63304578]
[1644663784932,0.540349,2913.1,2911.9,1.46144578]
[1644663785127,0.540349,2913.1,2912.0,1.63304578]
[1644663785330,0.540349,2913.1,2912.1,1.46144578]
[1644663785528,0.540349,2913.1,2912.1,1.95844578]
[1644663785729,0.540349,2913.1,2912.2,0.1716]
[1644663785927,0.540349,2913.1,2912.4,0.00911487]
[1644663786328,0.61283945,2912.6,2912.4,0.00911487]
[1644663786873,0.1716,2913.3,2912.2,0.1716]
[1644663787273,0.1716,2913.3,2912.4,0.00911503]
[1644663787975,0.1716,2913.3,2912.2,0.1716]
[1644663787976,0.70621018,2912.7,2912.2,0.1716]
[1644663788174,0.70621018,2912.7,2912.3,1.46125155]
[1644663789376,0.70621018,2912.7,2912.4,0.00274244]
[1644663789983,0.0009323,2912.5,2912.4,0.00274244]
[1644663790426,0.0009323,2912.5,2912.0,1.46133246]
[1644663790626,0.0009323,2912.5,2912.3,0.00911518]
[1644663791529,0.0009323,2912.5,2911.8,0.497]
[1644663791725,0.0009323,2912.5,2911.9,1.46134884]
[1644663791934,0.0019323,2912.5,2912.3,0.00911534]